fUSD/lending_fUSD_20251224
["ID","MTS","AMOUNT","RATE_DAILY","PERIOD"]
[399623970,1766563832473,-3292.0,0.00015602,2]
[399623971,1766563832483,-255.0,0.0001566,2]
[399623972,1766563832493,-9112.03,0.00015703,2]
[399623973,1766563832504,-1820.16493073,0.00015753,7]
[399623974,1766563832514,-3932.73,0.00015781,2]
[399623975,1766563832524,-195.0,0.00015876,2]
[399623976,1766563832534,-3932.73,0.00016231,2]
[399623977,1766563832544,-500.0,0.00016438,2]
[399623978,1766563832554,-500.0,0.00016438,2]
[399623979,1766563832564,-500.0,0.00016438,2]
[399623980,1766563832574,-500.0,0.00016438,2]
[399623981,1766563832583,-500.0,0.00016438,2]
[399623982,1766563832593,-500.0,0.00016438,2]
[399623983,1766563832604,-500.0,0.00016438,2]
[399623984,1766563832614,-500.0,0.00016438,2]
[399623985,1766563832624,-500.0,0.00016438,2]
[399623986,1766563832635,-500.0,0.00016438,2]
[399623987,1766563832645,-500.0,0.00016438,2]
[399623988,1766563832655,-500.0,0.00016438,2]
[399623989,1766563832665,-500.0,0.00016438,2]
[399623990,1766563832675,-500.0,0.00016438,2]
[399623991,1766563832685,-500.0,0.00016438,2]
[399623992,1766563832695,-500.0,0.00016438,2]
[399623993,1766563832705,-459.05703606,0.00016438,2]
[399623994,1766563832715,-500.0,0.00016438,2]
[399623995,1766563832725,-500.0,0.00016438,2]
[399623996,1766563832735,-500.0,0.00016438,2]
[399623997,1766563832745,-500.0,0.00016438,2]
[399623998,1766563832755,-500.0,0.00016438,2]
[399623999,1766563832765,-530.0,0.00016493,2]
[399624000,1766563832775,-393.14838043,0.00016623,2]
[399624001,1766563832785,-10567.00801928,0.0001667,2]
[399624002,1766563832795,-3932.73,0.00016682,2]
[399624003,1766563832805,-1221.51,0.00016797,2]
[399624004,1766563832814,-433.0,0.00016866,2]
[399624005,1766563832824,-150.0,0.00016986,2]
[399624006,1766563832834,-1003.8761,0.00016999,2]
[399624007,1766563832844,-2000.0,0.00017,2]
[399624008,1766563832855,-1152.0,0.00017043,2]
[399624009,1766563832865,-3932.73,0.00017133,2]
[399624010,1766563832875,-4609.0,0.00017162,2]
[399624011,1766563832886,-168.0,0.00017217,2]
[399624012,1766563832895,-5649.4,0.00017226,2]
[399624013,1766563832905,-514.49,0.00017226,2]
[399624014,1766563832915,-168.0,0.00017242,2]
[399624015,1766563832925,-500.0,0.00017289,2]
[399624016,1766563832935,-150.0,0.00017534,2]
[399624017,1766563832945,-153.1607708,0.00017534,2]
[399624018,1766563832955,-150.0,0.00017534,2]
[399624019,1766563832965,-168.0,0.00017542,2]
[399624020,1766563832976,-150.0,0.00017561,2]
[399624021,1766563832989,-150.0,0.00017561,2]
[399624022,1766563832998,-168.0,0.00017565,2]
[399624023,1766563833008,-201.6820868,0.00017589,2]
[399624024,1766563833019,-150.0,0.00017589,2]
[399624025,1766563833029,-168.0,0.00017602,2]
[399624026,1766563833040,-168.0,0.00017619,2]
[399624027,1766563833050,-168.0,0.00017657,2]
[399624028,1766563833060,-168.0,0.00017708,2]
[399624029,1766563833070,-168.0,0.00017759,2]
[399624030,1766563833080,-999.0,0.00017823,3]
[399624031,1766563833091,-202.88102101,0.00017879,2]
[399624032,1766563833101,-168.0,0.00017887,2]
[399624033,1766563833111,-168.0,0.00017905,2]
[399624034,1766563833121,-647.5602416,0.00018118,2]
[399624035,1766563833131,-736.0,0.0001816,2]
[399624036,1766563833142,-168.0,0.00018197,2]
[399624037,1766563833152,-200.0,0.00018268,2]
[399624038,1766563833162,-217.33257128,0.00018268,2]
[399624039,1766563833172,-200.0,0.00018268,2]
[399624040,1766563833182,-536.72667835,0.00018268,2]
[399624041,1766563833192,-219.0,0.00018378,2]
[399624042,1766563833202,-500.0,0.00018384,2]
[399624043,1766563833212,-200.0,0.00018451,2]
[399624044,1766563833222,-200.0,0.00018451,2]
[399624045,1766563833231,-500.0,0.000185,4]
[399624046,1766563833242,-4543.66,0.00018533,2]
[399624047,1766563833252,-299.99,0.00018533,4]
[399624048,1766563833263,-150.99,0.00018533,2]
[399624049,1766563833273,-8282.55,0.00018533,2]
[399624050,1766563833283,-150.99,0.00018533,2]
[399624051,1766563833293,-999.99,0.00018533,2]
[399624052,1766563833303,-168.0,0.00018539,2]
[399624053,1766563833314,-168.0,0.00018544,2]
[399624054,1766563833324,-168.0,0.00018549,2]
[399624055,1766563833334,-219.0,0.00018616,2]
[399624056,1766563833344,-219.0,0.00018631,2]
[399624057,1766563833355,-200.0,0.00018635,2]
[399624058,1766563833366,-168.0,0.00018635,2]
[399624059,1766563833376,-4131.0,0.00018652,2]
[399624060,1766563833387,-1221.51,0.00018663,2]
[399624061,1766563833396,-168.0,0.00018669,2]
[399624062,1766563833406,-219.0,0.0001868,2]
[399624063,1766563833416,-10567.00801928,0.00018699,2]
[399624064,1766563833426,-168.0,0.00018705,2]
[399624065,1766563833437,-1613.0,0.00018714,2]
[399624066,1766563833447,-167.02,0.00018734,2]
[399624067,1766563833456,-1000.0,0.0001876,2]
[399624068,1766563833466,-200.0,0.00018822,2]
[399624069,1766563833477,-1130.0,0.00018878,2]
[399624070,1766563833486,-500.0,0.00019,4]
[399624071,1766563833496,-300.0,0.00019,2]
[399624072,1766563833506,-200.0,0.0001901,2]
[399624073,1766563833517,-200.18296457,0.00019082,2]
[399624074,1766563833527,-1000.0,0.00019438,2]
[399624075,1766563833537,-168.4,0.00019443,2]
[399624076,1766563833547,-1050.0,0.00019556,2]
[399624077,1766563833558,-647.5602416,0.00019981,2]
[399624078,1766563833568,-1000.0,0.00020095,2]
[399624079,1766563833578,-1000.0,0.00020116,2]
[399624080,1766563833588,-793.71,0.00020187,2]
[399624081,1766563833598,-500.0,0.00020292,2]
[399624082,1766563833608,-1008.0,0.000203,2]
[399624083,1766563833619,-152.88,0.00020472,2]
[399624084,1766563833630,-1221.51,0.00020529,2]
[399624085,1766563833641,-2258.0,0.0002055,2]
[399624086,1766563833651,-1821.2,0.00020591,2]
[399624087,1766563833662,-2442.0,0.00020693,2]
[399624088,1766563833672,-1000.0,0.00020693,2]
[399624089,1766563833683,-164.83745118,0.00020695,2]
[399624090,1766563833693,-2000.0,0.000207,2]
[399624091,1766563833702,-644.75939923,0.000207,2]
[399624092,1766563833712,-10567.00801928,0.00020727,2]
[399624093,1766563833723,-500.0,0.0002074,2]
[399624094,1766563833732,-74591.3910346,0.00020793,2]
[399624095,1766563833742,-1000.0,0.00020795,2]
[399624096,1766563833752,-1198.0,0.00020946,2]
[399624097,1766563833762,-912.0,0.00020946,2]
[399624098,1766563833771,-6533.0,0.00020946,2]
[399624099,1766563833781,-2430.0,0.00020946,2]
[399624100,1766563833791,-500.41121421,0.00020973,2]
[399624101,1766563833801,-500.0,0.00020973,2]
[399624102,1766563833811,-500.0,0.00020973,2]
[399624103,1766563833821,-500.38092025,0.00020973,2]
[399624104,1766563833831,-501.20680817,0.00020973,2]
[399624105,1766563833841,-500.0,0.00020973,2]
[399624106,1766563833852,-480.09853152,0.00020973,2]
[399624107,1766563833862,-500.51005259,0.00020973,2]
[399624108,1766563833872,-500.8423155,0.00020973,2]
[399624109,1766563833882,-503.11330807,0.00020973,2]
[399624110,1766563833892,-500.0,0.00020973,2]
[399624111,1766563833902,-500.19289853,0.00020973,2]
[399624112,1766563833912,-500.0,0.00020973,2]
[399624113,1766563833923,-501.12626334,0.00020973,2]
[399624114,1766563833932,-500.0,0.00020973,2]
[399624115,1766563833942,-501.63628178,0.00020973,2]
[399624116,1766563833952,-150.01500017,0.00020973,2]
[399624117,1766563833962,-500.0,0.00020973,2]
[399624118,1766563833972,-160.2351428,0.00020973,2]
[399624119,1766563833984,-207.58860749,0.00020973,2]
[399624120,1766563833994,-181.04592189,0.00020973,2]
[399624121,1766563834004,-500.7748224,0.00020973,2]
[399624122,1766563834013,-509.43327994,0.00020973,2]
[399624123,1766563834025,-501.65369722,0.00020973,2]
[399624124,1766563834036,-501.52777641,0.00020973,2]
[399624125,1766563834046,-501.06943212,0.00020973,2]
[399624126,1766563834058,-506.49407509,0.00020973,2]
[399624127,1766563834068,-505.10920999,0.00020973,2]
[399624128,1766563834077,-350.0,0.00021,2]
[399624129,1766563834088,-284.57,0.00021012,2]
[399624130,1766563834098,-6848.18,0.00021068,2]
[399624131,1766563834109,-657.74,0.00021075,2]
[399624132,1766563834119,-305.0,0.000212,2]
[399624133,1766563834129,-849.0,0.000212,2]
[399624134,1766563834139,-299.0,0.000212,2]
[399624135,1766563834149,-983.0,0.000212,2]
[399624136,1766563834159,-6356.57,0.0002137,2]
[399624137,1766563834170,-382.61,0.000214,7]
[399624138,1766563834180,-32647.15122059,0.000215,2]
[399624139,1766563834190,-1000.0,0.000215,2]
[399624140,1766563834200,-1000.0,0.00021521,2]
[399624141,1766563834210,-1000.0,0.00021521,2]
[399624142,1766563834220,-1000.0,0.00021521,2]
[399624143,1766563834231,-1000.0,0.00021521,2]
[399624144,1766563834241,-1000.0,0.00021521,2]
[399624145,1766563834251,-1000.0,0.00021647,2]
[399624146,1766563834261,-1000.0,0.0002165,2]
[399624147,1766563834271,-300.0,0.00021661,2]
[399624148,1766563834282,-300.0,0.00021663,2]
[399624149,1766563834292,-150.0,0.00021675,2]
[399624150,1766563834302,-150.0,0.00021676,2]
[399624151,1766563834312,-254.13060141,0.00021677,2]
[399624152,1766563834323,-1117.15871945,0.00021684,2]
[399624153,1766563834333,-300.0,0.00021685,2]
[399624154,1766563834343,-300.0,0.00021694,2]
[399624155,1766563834353,-1000.0,0.00021699,2]
[399624156,1766563834363,-364.48,0.00021699,2]
[399624157,1766563834374,-300.0,0.000217,2]
[399624158,1766563834384,-1000.0,0.000217,2]
[399624159,1766563834395,-1000.0,0.00021701,2]
[399624160,1766563834405,-300.0,0.00021712,2]
[399624161,1766563834416,-300.0,0.00021713,2]
[399624162,1766563834426,-1000.0,0.00021719,2]
[399624163,1766563834437,-300.0,0.00021726,2]
[399624164,1766563834447,-300.0,0.00021726,2]
[399624165,1766563834457,-300.0,0.00021727,2]
[399624166,1766563834468,-300.0,0.00021727,2]
[399624167,1766563834478,-150.0,0.00021731,2]
[399624168,1766563834489,-300.0,0.00021733,2]
[399624169,1766563834499,-300.0,0.00021734,2]
[399624170,1766563834510,-300.0,0.0002174,2]
[399624171,1766563834520,-300.0,0.0002174,2]
[399624172,1766563834530,-300.0,0.00021743,2]
[399624173,1766563834541,-150.0,0.00021743,2]
[399624174,1766563834551,-150.0,0.00021746,2]
[399624175,1766563834561,-1000.0,0.00021753,2]
[399624176,1766563834574,-1000.0,0.00021754,2]
[399624177,1766563834585,-300.0,0.00021755,2]
[399624178,1766563834595,-1000.0,0.00021763,2]
[399624179,1766563834606,-1000.0,0.00021766,2]
[399624180,1766563834617,-300.0,0.00021766,2]
[399624181,1766563834627,-300.0,0.00021766,2]
[399624182,1766563834637,-150.0,0.00021766,2]
[399624183,1766563834647,-300.0,0.0002177,2]
[399624184,1766563834659,-300.0,0.0002177,2]
[399624185,1766563834669,-210.31131003,0.00021775,2]
[399624186,1766563834680,-1000.0,0.00021782,2]
[399624187,1766563834690,-300.0,0.00021784,2]
[399624188,1766563834700,-1000.0,0.00021784,2]
[399624189,1766563834710,-300.0,0.00021788,2]
[399624190,1766563834721,-150.0,0.00021791,2]
[399624191,1766563834731,-1000.0,0.00021794,2]
[399624192,1766563834741,-1000.0,0.00021795,2]
[399624193,1766563834751,-300.0,0.00021798,2]
[399624194,1766563834762,-1000.0,0.00021801,2]
[399624195,1766563834772,-300.0,0.00021813,2]
[399624196,1766563834783,-300.0,0.00021817,2]
[399624197,1766563834794,-300.0,0.00021819,2]
[399624198,1766563834804,-150.0,0.00021824,2]
[399624199,1766563834814,-300.0,0.00021826,2]
[399624200,1766563834824,-300.0,0.00021828,2]
[399624201,1766563834834,-1000.0,0.00021831,2]
[399624202,1766563834844,-1000.0,0.00021836,2]
[399624203,1766563834854,-150.0,0.00021838,2]
[399624204,1766563834863,-150.0,0.0002184,2]
[399624205,1766563834873,-647.5602416,0.00021844,2]
[399624206,1766563834883,-1000.0,0.00021848,2]
[399624207,1766563834894,-150.0,0.00021858,2]
[399624208,1766563834905,-300.0,0.0002186,2]
[399624209,1766563834915,-150.0,0.00021862,2]
[399624210,1766563834925,-150.0,0.00021872,2]
[399624211,1766563834936,-168.4,0.00021874,2]
[399624212,1766563834951,-300.0,0.00021879,2]
[399624213,1766563834962,-300.0,0.00021886,2]
[399624214,1766563834972,-300.0,0.00021886,2]
[399624215,1766563834986,-150.0,0.00021886,2]
[399624216,1766563834996,-1000.0,0.00021886,2]
[399624217,1766563835006,-150.0,0.00021891,2]
[399624218,1766563835017,-300.0,0.00021895,2]
[399624219,1766563835028,-1000.0,0.000219,2]
[399624220,1766563835038,-1000.0,0.000219,2]
[399624221,1766563835049,-300.0,0.00021901,2]
[399624222,1766563835060,-1000.0,0.00021907,2]
[399624223,1766563835072,-1000.0,0.00021916,2]
[399624224,1766563835082,-500.0,0.00021916,2]
[399624225,1766563835092,-500.0,0.00021917,2]
[399624226,1766563835103,-500.0,0.00021917,2]
[399624227,1766563835113,-500.0,0.00021917,2]
[399624228,1766563835123,-500.0,0.00021917,2]
[399624229,1766563835133,-2086.57419273,0.00021917,2]
[399624230,1766563835143,-5000.0,0.00021918,2]
[399624231,1766563835153,-154.92559391,0.00021918,2]
[399624232,1766563835164,-500.0,0.00021918,2]
[399624233,1766563835174,-500.0,0.00021918,2]
[399624234,1766563835185,-500.0,0.00021918,2]
[399624235,1766563835196,-294.7804169,0.00021918,2]
[399624236,1766563835206,-1000.0,0.00021922,2]
[399624237,1766563835216,-152.88,0.00021945,2]
[399624238,1766563835226,-151.33873241,0.00021948,2]
[399624239,1766563835236,-249.37,0.00022,7]
[399624240,1766563835246,-1924.18295,0.00022,2]
[399624241,1766563835257,-500.0,0.00022027,2]
[399624242,1766563835267,-425.64931547,0.00022068,2]
[399624243,1766563835277,-1500.0,0.00022068,2]
[399624244,1766563835287,-1002.6195934,0.00022068,2]
[399624245,1766563835298,-1500.0,0.00022068,2]
[399624246,1766563835308,-502.73299854,0.00022068,2]
[399624247,1766563835318,-1221.51,0.00022396,2]
[399624248,1766563835328,-500.0,0.00022396,2]
[399624249,1766563835339,-500.0,0.00022396,2]
[399624250,1766563835349,-500.0,0.00022396,2]
[399624251,1766563835359,-500.0,0.00022396,2]
[399624252,1766563835370,-500.0,0.00022396,2]
[399624253,1766563835381,-500.0,0.00022396,2]
[399624254,1766563835391,-500.0,0.00022396,2]
[399624255,1766563835401,-500.0,0.00022396,2]
[399624256,1766563835411,-500.0,0.00022396,2]
[399624257,1766563835422,-500.0,0.00022396,2]
[399624258,1766563835433,-500.0,0.00022396,2]
[399624259,1766563835443,-500.0,0.00022396,2]
[399624260,1766563835453,-500.0,0.00022396,2]
[399624261,1766563835463,-500.0,0.00022396,2]
[399624262,1766563835473,-500.0,0.00022396,2]
[399624263,1766563835483,-500.0,0.00022396,2]
[399624264,1766563835493,-500.0,0.00022396,2]
[399624265,1766563835503,-500.0,0.00022396,2]
[399624266,1766563835513,-500.0,0.00022396,2]
[399624267,1766563835524,-500.0,0.00022396,2]
[399624268,1766563835534,-500.0,0.00022396,2]
[399624269,1766563835544,-500.0,0.00022396,2]
[399624270,1766563835554,-500.0,0.00022396,2]
[399624271,1766563835564,-500.0,0.00022396,2]
[399624272,1766563835574,-500.0,0.00022396,2]
[399624273,1766563835584,-500.0,0.00022396,2]
[399624274,1766563835594,-500.0,0.00022396,2]
[399624275,1766563835604,-500.0,0.00022396,2]
[399624276,1766563835614,-500.0,0.00022396,2]
[399624277,1766563835624,-838.0,0.00022396,2]
[399624278,1766563835635,-500.0,0.00022396,2]
[399624279,1766563835650,-500.0,0.00022396,2]
[399624280,1766563835660,-500.0,0.00022396,2]
[399624281,1766563835670,-500.0,0.00022396,2]
[399624282,1766563835681,-500.0,0.00022396,2]
[399624283,1766563835691,-500.0,0.00022396,2]
[399624284,1766563835700,-500.0,0.00022396,2]
[399624285,1766563835710,-500.0,0.00022396,2]
[399624286,1766563835720,-500.0,0.00022396,2]
[399624287,1766563835731,-500.0,0.00022396,2]
[399624288,1766563835742,-500.0,0.00022396,2]
[399624289,1766563835752,-500.0,0.00022396,2]
[399624290,1766563835762,-500.0,0.00022396,2]
[399624291,1766563835772,-500.0,0.00022396,2]
[399624292,1766563835783,-500.0,0.00022396,2]
[399624293,1766563835793,-826.0,0.00022396,2]
[399624294,1766563835803,-500.0,0.00022396,2]
[399624295,1766563835813,-500.0,0.00022396,2]
[399624296,1766563835823,-500.0,0.00022396,2]
[399624297,1766563835833,-500.0,0.00022396,2]
[399624298,1766563836107,-500.0,0.00022396,2]
[399624299,1766563836119,-500.0,0.00022396,2]
[399624300,1766563836129,-500.0,0.00022396,2]
[399624301,1766563836139,-500.0,0.00022396,2]
[399624302,1766563836149,-500.0,0.00022396,2]
[399624303,1766563836159,-500.0,0.00022396,2]
[399624304,1766563836170,-500.0,0.00022396,2]
[399624305,1766563836181,-500.0,0.00022396,2]
[399624306,1766563836191,-500.0,0.00022396,2]
[399624307,1766563836201,-500.0,0.00022396,2]
[399624308,1766563836211,-500.0,0.00022396,2]
[399624309,1766563836220,-500.0,0.00022396,2]
[399624310,1766563836230,-500.0,0.00022396,2]
[399624311,1766563836240,-500.0,0.00022396,2]
[399624312,1766563836255,-500.0,0.00022396,2]
[399624313,1766563836271,-500.0,0.00022396,2]
[399624314,1766563836282,-500.0,0.00022396,2]
[399624315,1766563836292,-500.0,0.00022396,2]
[399624316,1766563836303,-500.0,0.00022396,2]
[399624317,1766563836312,-500.0,0.00022396,2]
[399624318,1766563836322,-500.0,0.00022396,2]
[399624319,1766563836332,-500.0,0.00022396,2]
[399624320,1766563836342,-500.0,0.00022396,2]
[399624321,1766563836351,-500.0,0.00022396,2]
[399624322,1766563836361,-500.0,0.00022396,2]
[399624323,1766563836370,-500.0,0.00022396,2]
[399624324,1766563836380,-500.0,0.00022396,2]
[399624325,1766563836390,-500.0,0.00022396,2]
[399624326,1766563836400,-500.0,0.00022396,2]
[399624327,1766563836410,-500.0,0.00022396,2]
[399624328,1766563836420,-500.0,0.00022396,2]
[399624329,1766563836430,-500.0,0.00022396,2]
[399624330,1766563836440,-500.0,0.00022396,2]
[399624331,1766563836451,-500.0,0.00022396,2]
[399624332,1766563836461,-500.0,0.00022396,2]
[399624333,1766563836471,-500.0,0.00022396,2]
[399624334,1766563836482,-500.0,0.00022396,2]
[399624335,1766563836492,-500.0,0.00022396,2]
[399624336,1766563836503,-500.0,0.00022396,2]
[399624337,1766563836513,-500.0,0.00022396,2]
[399624338,1766563836524,-500.0,0.00022396,2]
[399624339,1766563836534,-500.0,0.00022396,2]
[399624340,1766563836544,-500.0,0.00022396,2]
[399624341,1766563836555,-500.0,0.00022396,2]
[399624342,1766563836566,-500.0,0.00022396,2]
[399624343,1766563836576,-500.0,0.00022396,2]
[399624344,1766563836587,-500.0,0.00022396,2]
[399624345,1766563836597,-500.0,0.00022396,2]
[399624346,1766563836608,-500.0,0.00022396,2]
[399624347,1766563836618,-500.0,0.00022396,2]
[399624348,1766563836629,-500.0,0.00022396,2]
[399624349,1766563836639,-500.0,0.00022396,2]
[399624350,1766563836649,-500.0,0.00022396,2]
[399624351,1766563836660,-500.0,0.00022396,2]
[399624352,1766563836670,-500.0,0.00022396,2]
[399624353,1766563836681,-500.0,0.00022396,2]
[399624354,1766563836691,-500.0,0.00022396,2]
[399624355,1766563836702,-500.0,0.00022396,2]
[399624356,1766563836712,-500.0,0.00022396,2]
[399624357,1766563836721,-500.0,0.00022396,2]
[399624358,1766563836731,-500.0,0.00022396,2]
[399624359,1766563836742,-500.0,0.00022396,2]
[399624360,1766563836753,-500.0,0.00022396,2]
[399624361,1766563836763,-500.0,0.00022396,2]
[399624362,1766563836773,-500.0,0.00022396,2]
[399624363,1766563836782,-500.0,0.00022396,2]
[399624364,1766563836792,-500.0,0.00022396,2]
[399624365,1766563836802,-500.0,0.00022396,2]
[399624366,1766563836812,-500.0,0.00022396,2]
[399624367,1766563836822,-500.0,0.00022396,2]
[399624368,1766563836832,-500.0,0.00022396,2]
[399624369,1766563836842,-500.0,0.00022396,2]
[399624370,1766563836853,-500.0,0.00022396,2]
[399624371,1766563836863,-500.0,0.00022396,2]
[399624372,1766563836873,-500.0,0.00022396,2]
[399624373,1766563836883,-500.0,0.00022396,2]
[399624374,1766563836892,-500.0,0.00022396,2]
[399624375,1766563836903,-500.0,0.00022396,2]
[399624376,1766563836913,-500.0,0.00022396,2]
[399624377,1766563836923,-500.0,0.00022396,2]
[399624378,1766563836932,-500.0,0.00022396,2]
[399624379,1766563836942,-500.0,0.00022396,2]
[399624380,1766563836956,-500.0,0.00022396,2]
[399624381,1766563836966,-500.0,0.00022396,2]
[399624382,1766563836980,-500.0,0.00022396,2]
[399624383,1766563836998,-500.0,0.00022396,2]
[399624384,1766563837017,-500.0,0.00022396,2]
[399624385,1766563837027,-500.0,0.00022396,2]
[399624386,1766563837037,-500.0,0.00022396,2]
[399624387,1766563837046,-500.0,0.00022396,2]
[399624388,1766563837055,-500.0,0.00022396,2]
[399624389,1766563837065,-500.0,0.00022396,2]
[399624390,1766563837075,-500.0,0.00022396,2]
[399624391,1766563837085,-500.0,0.00022396,2]
[399624392,1766563837095,-500.0,0.00022465,2]
[399624393,1766563837105,-1848.0,0.00022566,2]
[399624394,1766563837115,-150.31,0.00022575,2]
[399624395,1766563837126,-1821.2,0.00022607,2]
[399624396,1766563837136,-1670.69301146,0.00022616,2]
[399624397,1766563837147,-2109.63317787,0.00022616,2]
[399624398,1766563837158,-10567.00801928,0.00022756,2]
[399624399,1766563837168,-247.91832257,0.00023,120]
[399624400,1766563837178,-1004.38948415,0.00023,2]
[399624401,1766563837189,-400.0,0.00023,2]
[399624402,1766563837199,-2577.47592189,0.000231,2]
[399624403,1766563837209,-151.33873241,0.00023167,2]
[399624404,1766563837220,-16521.58447012,0.00023178,2]
[399624405,1766563837230,-250.0,0.00023346,2]
[399624406,1766563837240,-150.0,0.00023346,2]
[399624407,1766563837250,-500.0,0.00023391,2]
[399624408,1766563837260,-152.0,0.00023392,2]
[399624409,1766563837271,-200.0,0.00023392,2]
[399624410,1766563837281,-200.0,0.00023392,2]
[399624411,1766563837291,-217.814,0.00023392,2]
[399624412,1766563837301,-150.811,0.00023392,2]
[399624413,1766563837312,-228.266,0.00023392,2]
[399624414,1766563837322,-250.0,0.00023392,2]
[399624415,1766563837332,-156.381,0.00023392,2]
[399624416,1766563837342,-250.0,0.00023392,2]
[399624417,1766563837352,-250.0,0.00023392,2]
[399624418,1766563837362,-211.528,0.00023392,2]
[399624419,1766563837372,-166.0,0.00023392,2]
[399624420,1766563837382,-226.805,0.00023392,2]
[399624421,1766563837392,-614.909,0.00023392,2]
[399624422,1766563837402,-1609.0,0.00023392,2]
[399624423,1766563837412,-1332.259,0.00023392,2]
[399624424,1766563837422,-3458.0,0.00023392,2]
[399624425,1766563837432,-432.0,0.00023392,2]
[399624426,1766563837442,-1263.0,0.00023392,2]
[399624427,1766563837453,-150.0,0.00023397,2]
[399624428,1766563837463,-1219.85,0.00023397,2]
[399624429,1766563837472,-200.0,0.000235,2]
[399624430,1766563837483,-249.37,0.000236,7]
[399624431,1766563837493,-150.18672367,0.00023673,2]
[399624432,1766563837503,-647.5602416,0.00023707,2]
[399624433,1766563837513,-152.88,0.00023877,2]
[399624434,1766563837524,-1198.0,0.00023946,2]
[399624435,1766563837534,-912.0,0.00023946,2]
[399624436,1766563837544,-6533.0,0.00023946,2]
[399624437,1766563837554,-2430.0,0.00023946,2]
[399624438,1766563837564,-16637.69571982,0.00024,2]
[399624439,1766563837574,-1017.66970628,0.00024,2]
[399624440,1766563837584,-3600.0,0.00024,2]
[399624441,1766563837594,-902.86708974,0.00024,2]
[399624442,1766563837605,-312.89093905,0.00024,2]
[399624446,1766563838344,-15842.56611494,0.00024,2]
[399624447,1766563838354,-284.56694399,0.00024091,2]
[399624448,1766563838364,-420.44419647,0.0002421,2]
[399624449,1766563838380,-3683.0309853,0.0002421,2]
[399624450,1766563838389,-152.88,0.00024337,2]
[399624451,1766563838399,-151.33873241,0.00024387,2]
[399624452,1766563838409,-2000.0,0.000244,2]
[399624453,1766563838419,-576.85903583,0.000245,2]
[399624454,1766563838428,-200.0,0.00024602,2]
[399624455,1766563838438,-1821.2,0.00024624,2]
[399624456,1766563838450,-595.45089847,0.0002465,2]
[399624457,1766563838461,-166.95510473,0.0002465,2]
[399624458,1766563838471,-1000.18,0.00024658,30]
[399624459,1766563838481,-1090.09,0.00024658,2]
[399624460,1766563838492,-1000.0,0.00024658,2]
[399624461,1766563838501,-1220.11,0.00024685,2]
[399624462,1766563838512,-1220.11,0.00024685,2]
[399624463,1766563838522,-1220.11,0.00024685,2]
[399624464,1766563838532,-1220.11,0.00024685,2]
[399624465,1766563838545,-236.8725366,0.000247,2]
[399624466,1766563838555,-200.0,0.00024701,2]
[399624467,1766563838566,-236.87253658,0.0002476,2]
[399624468,1766563838578,-10567.00801928,0.00024785,2]
[399624469,1766563838588,-500.0,0.00024799,2]
[399624470,1766563838598,-505.91917911,0.00024799,2]
[399624471,1766563838608,-200.0,0.00024799,2]
[399624472,1766563838619,-500.0,0.00024799,2]